[Event "Titled Tuesday Blitz May 11 2021"]
[White "Chigaev, Maksim"]
[Black "Artemiev, Vladislav"]
[WhiteFideId "4108116"]
[BlackFideId "24101605"]
[WhiteElo "2646"]
[BlackElo "2783"]
[Result "0-1"]
[Round "08"]
[TimeControl "180+1"]
[Date "2021.05.11"]
[WhiteClock "0:00:03"]
[BlackClock "0:00:15"]

1. c4 {[%clk 0:03:00]}  e5 {[%clk 0:02:59]} 2. g3 {[%clk 0:03:00]}  Nc6 {[%clk 0:02:58]} 3. Bg2 {[%clk 0:03:00]}  g6 {[%clk 0:02:58]} 4. Nc3 {[%clk 0:03:00]}  Bg7 {[%clk 0:02:58]} 5. d3 {[%clk 0:03:00]}  d6 {[%clk 0:02:56]} 6. Nf3 {[%clk 0:03:00]}  Nf6 {[%clk 0:02:50]} 7. O-O {[%clk 0:03:00]}  O-O {[%clk 0:02:50]} 8. Bg5 {[%clk 0:02:57]}  h6 {[%clk 0:02:50]} 9. Bxf6 {[%clk 0:02:57]}  Bxf6 {[%clk 0:02:50]} 10. Nd2 {[%clk 0:02:58]}  Bg7 {[%clk 0:02:50]} 11. a3 {[%clk 0:02:58]}  a5 {[%clk 0:02:50]} 12. Rb1 {[%clk 0:02:58]}  Re8 {[%clk 0:02:46]} 13. e3 {[%clk 0:02:51]}  Ne7 {[%clk 0:02:31]} 14. Qc2 {[%clk 0:02:48]}  c6 {[%clk 0:02:26]} 15. b4 {[%clk 0:02:48]}  axb4 {[%clk 0:02:26]} 16. axb4 {[%clk 0:02:49]}  d5 {[%clk 0:02:21]} 17. b5 {[%clk 0:02:43]}  Be6 {[%clk 0:02:16]} 18. Rfd1 {[%clk 0:02:38]}  h5 {[%clk 0:01:23]} 19. h4 {[%clk 0:02:25]}  Nf5 {[%clk 0:01:12]} 20. bxc6 {[%clk 0:02:17]}  bxc6 {[%clk 0:01:11]} 21. Nb3 {[%clk 0:02:17]}  Rc8 {[%clk 0:00:54]} 22. Na4 {[%clk 0:01:37]}  g5 {[%clk 0:00:46]} 23. e4 {[%clk 0:01:00]}  dxe4 {[%clk 0:00:38]} 24. dxe4 {[%clk 0:00:58]}  Nd4 {[%clk 0:00:39]} 25. Nxd4 {[%clk 0:00:57]}  exd4 {[%clk 0:00:40]} 26. hxg5 {[%clk 0:00:53]}  Qxg5 {[%clk 0:00:40]} 27. Rb3 {[%clk 0:00:51]}  Rb8 {[%clk 0:00:32]} 28. Rdd3 {[%clk 0:00:23]}  Rxb3 {[%clk 0:00:31]} 29. Rxb3 {[%clk 0:00:23]}  Ra8 {[%clk 0:00:32]} 30. f4 {[%clk 0:00:19]}  Qg4 {[%clk 0:00:28]} 31. f5 {[%clk 0:00:18]}  Bd7 {[%clk 0:00:20]} 32. Rb7 {[%clk 0:00:15]}  Be8 {[%clk 0:00:18]} 33. Qb3 {[%clk 0:00:10]}  d3 {[%clk 0:00:18]} 34. Qxd3 {[%clk 0:00:05]}  h4 {[%clk 0:00:15]} 35. Bf3 {[%clk 0:00:03]}  Qxg3+ {[%clk 0:00:15]} 0-1


[Site "https://www.chess.com"]

[Event "Titled Tuesday Blitz May 11 2021"]
[White "Debashis, Das"]
[Black "Pakleza, Zbigniew"]
[WhiteFideId "5024854"]
[BlackFideId "1119290"]
[WhiteElo "2470"]
[BlackElo "2526"]
[Result "1-0"]
[Round "08"]
[TimeControl "180+1"]
[Date "2021.05.11"]
[WhiteClock "0:00:13"]
[BlackClock "0:00:12"]

1. e4 {[%clk 0:03:00]}  d6 {[%clk 0:02:59]} 2. d4 {[%clk 0:03:00]}  Nf6 {[%clk 0:02:59]} 3. Nc3 {[%clk 0:03:00]}  c6 {[%clk 0:03:00]} 4. Nf3 {[%clk 0:02:59]}  Bg4 {[%clk 0:02:59]} 5. Be2 {[%clk 0:02:59]}  e6 {[%clk 0:02:59]} 6. O-O {[%clk 0:02:58]}  Be7 {[%clk 0:03:00]} 7. h3 {[%clk 0:02:58]}  Bh5 {[%clk 0:03:00]} 8. Be3 {[%clk 0:02:57]}  d5 {[%clk 0:03:00]} 9. e5 {[%clk 0:02:48]}  Nfd7 {[%clk 0:03:00]} 10. Nd2 {[%clk 0:02:47]}  Bg6 {[%clk 0:03:00]} 11. Nb3 {[%clk 0:02:42]}  c5 {[%clk 0:02:47]} 12. Nxc5 {[%clk 0:02:41]}  Nxc5 {[%clk 0:02:45]} 13. dxc5 {[%clk 0:02:42]}  Nc6 {[%clk 0:02:46]} 14. Nb5 {[%clk 0:02:39]}  O-O {[%clk 0:02:30]} 15. f4 {[%clk 0:02:31]}  d4 {[%clk 0:02:08]} 16. Nxd4 {[%clk 0:02:25]}  Bxc5 {[%clk 0:02:07]} 17. c3 {[%clk 0:02:25]}  Bxd4 {[%clk 0:02:03]} 18. Bxd4 {[%clk 0:02:22]}  Nxd4 {[%clk 0:01:42]} 19. Qxd4 {[%clk 0:02:23]}  Qxd4+ {[%clk 0:01:42]} 20. cxd4 {[%clk 0:02:23]}  Rfd8 {[%clk 0:01:43]} 21. Rfd1 {[%clk 0:02:19]}  Be4 {[%clk 0:01:36]} 22. Rac1 {[%clk 0:02:17]}  Rac8 {[%clk 0:01:32]} 23. Kf2 {[%clk 0:02:16]}  g6 {[%clk 0:01:09]} 24. Rc3 {[%clk 0:01:53]}  Bd5 {[%clk 0:01:01]} 25. a3 {[%clk 0:01:44]}  Kg7 {[%clk 0:00:52]} 26. Rdc1 {[%clk 0:01:44]}  Bc6 {[%clk 0:00:44]} 27. Rd1 {[%clk 0:01:25]}  h6 {[%clk 0:00:37]} 28. g4 {[%clk 0:01:23]}  g5 {[%clk 0:00:36]} 29. fxg5 {[%clk 0:01:19]}  hxg5 {[%clk 0:00:36]} 30. Bf3 {[%clk 0:01:20]}  Bxf3 {[%clk 0:00:35]} 31. Kxf3 {[%clk 0:01:20]}  Rxc3+ {[%clk 0:00:29]} 32. bxc3 {[%clk 0:01:21]}  Rc8 {[%clk 0:00:30]} 33. Rc1 {[%clk 0:01:10]}  b5 {[%clk 0:00:25]} 34. Ke4 {[%clk 0:01:09]}  Rh8 {[%clk 0:00:25]} 35. a4 {[%clk 0:01:05]}  a6 {[%clk 0:00:22]} 36. axb5 {[%clk 0:01:00]}  axb5 {[%clk 0:00:23]} 37. Rh1 {[%clk 0:01:00]}  f6 {[%clk 0:00:19]} 38. exf6+ {[%clk 0:00:58]}  Kxf6 {[%clk 0:00:20]} 39. Rf1+ {[%clk 0:00:56]}  Ke7 {[%clk 0:00:20]} 40. Rf3 {[%clk 0:00:45]}  Kd6 {[%clk 0:00:20]} 41. Re3 {[%clk 0:00:40]}  Rf8 {[%clk 0:00:19]} 42. Kd3 {[%clk 0:00:39]}  Rh8 {[%clk 0:00:16]} 43. Kc2 {[%clk 0:00:38]}  b4 {[%clk 0:00:11]} 44. cxb4 {[%clk 0:00:36]}  Kd5 {[%clk 0:00:12]} 45. Kd3 {[%clk 0:00:35]}  Rh7 {[%clk 0:00:12]} 46. b5 {[%clk 0:00:33]}  Kd6 {[%clk 0:00:12]} 47. Kc4 {[%clk 0:00:31]}  Rc7+ {[%clk 0:00:13]} 48. Kb4 {[%clk 0:00:31]}  Rc1 {[%clk 0:00:13]} 49. Rc3 {[%clk 0:00:26]}  Rb1+ {[%clk 0:00:12]} 50. Ka5 {[%clk 0:00:25]}  Ra1+ {[%clk 0:00:11]} 51. Kb6 {[%clk 0:00:24]}  Ra4 {[%clk 0:00:12]} 52. Rd3 {[%clk 0:00:23]}  Rb4 {[%clk 0:00:12]} 53. Ka6 {[%clk 0:00:21]}  Kd5 {[%clk 0:00:12]} 54. b6 {[%clk 0:00:20]}  Kc6 {[%clk 0:00:10]} 55. Rc3+ {[%clk 0:00:20]}  Kd5 {[%clk 0:00:11]} 56. b7 {[%clk 0:00:20]}  Ra4+ {[%clk 0:00:11]} 57. Kb6 {[%clk 0:00:20]}  Rb4+ {[%clk 0:00:11]} 58. Kc7 {[%clk 0:00:19]}  Kxd4 {[%clk 0:00:12]} 59. Rc6 {[%clk 0:00:14]}  e5 {[%clk 0:00:12]} 60. Rb6 {[%clk 0:00:13]}  Rc4+ {[%clk 0:00:12]} 61. Kd7 {[%clk 0:00:13]} 1-0


[Site "https://www.chess.com"]

[Event "Titled Tuesday Blitz May 11 2021"]
[White "Dubov, Daniil"]
[Black "Petrovskyi, Vadym"]
[WhiteFideId "24126055"]
[BlackFideId "14165210"]
[WhiteElo "2722"]
[BlackElo "2219"]
[Result "1-0"]
[Round "08"]
[TimeControl "180+1"]
[Date "2021.05.11"]
[WhiteClock "0:00:31"]
[BlackClock "0:00:08"]

1. d4 {[%clk 0:03:00]}  Nf6 {[%clk 0:02:59]} 2. c4 {[%clk 0:03:00]}  e6 {[%clk 0:02:59]} 3. Nf3 {[%clk 0:03:00]}  b6 {[%clk 0:02:53]} 4. g3 {[%clk 0:02:59]}  Bb7 {[%clk 0:02:53]} 5. Bg2 {[%clk 0:02:58]}  Be7 {[%clk 0:02:53]} 6. O-O {[%clk 0:02:58]}  O-O {[%clk 0:02:53]} 7. d5 {[%clk 0:02:59]}  exd5 {[%clk 0:02:53]} 8. Nd4 {[%clk 0:02:59]}  Bc6 {[%clk 0:02:52]} 9. cxd5 {[%clk 0:02:58]}  Bxd5 {[%clk 0:02:53]} 10. Bxd5 {[%clk 0:02:57]}  Nxd5 {[%clk 0:02:53]} 11. e4 {[%clk 0:02:57]}  Nb4 {[%clk 0:02:45]} 12. Nc3 {[%clk 0:02:51]}  N8c6 {[%clk 0:02:41]} 13. Nf5 {[%clk 0:02:50]}  Bf6 {[%clk 0:02:40]} 14. a3 {[%clk 0:02:41]}  Na6 {[%clk 0:02:40]} 15. Nd5 {[%clk 0:02:39]}  Nc5 {[%clk 0:02:35]} 16. Bf4 {[%clk 0:02:33]}  d6 {[%clk 0:02:29]} 17. b4 {[%clk 0:01:52]}  Bxa1 {[%clk 0:02:12]} 18. Qxa1 {[%clk 0:01:50]}  Ne6 {[%clk 0:02:10]} 19. Rc1 {[%clk 0:01:49]}  Ne5 {[%clk 0:01:49]} 20. Bxe5 {[%clk 0:01:49]}  dxe5 {[%clk 0:01:50]} 21. Qxe5 {[%clk 0:01:48]}  c5 {[%clk 0:01:45]} 22. bxc5 {[%clk 0:01:28]}  bxc5 {[%clk 0:01:45]} 23. Rxc5 {[%clk 0:01:21]}  Re8 {[%clk 0:01:37]} 24. Rc6 {[%clk 0:01:05]}  Qg5 {[%clk 0:00:55]} 25. h4 {[%clk 0:00:54]}  f6 {[%clk 0:00:34]} 26. Nde7+ {[%clk 0:00:47]}  Kh8 {[%clk 0:00:26]} 27. Qxe6 {[%clk 0:00:46]}  Qd2 {[%clk 0:00:26]} 28. Kg2 {[%clk 0:00:34]}  Qe1 {[%clk 0:00:19]} 29. Nd6 {[%clk 0:00:31]}  h6 {[%clk 0:00:08]} 1-0


[Site "https://www.chess.com"]

[Event "Titled Tuesday Blitz May 11 2021"]
[White "Grandelius, Nils"]
[Black "Zubov, Alexander"]
[WhiteFideId "1710400"]
[BlackFideId "14109409"]
[WhiteElo "2651"]
[BlackElo "2740"]
[Result "0-1"]
[Round "08"]
[TimeControl "180+1"]
[Date "2021.05.11"]
[WhiteClock "0:00:03"]
[BlackClock "0:00:03"]

1. Nf3 {[%clk 0:03:00]}  Nf6 {[%clk 0:02:56]} 2. g3 {[%clk 0:03:01]}  g6 {[%clk 0:02:55]} 3. Bg2 {[%clk 0:03:01]}  d5 {[%clk 0:02:55]} 4. c4 {[%clk 0:03:00]}  c6 {[%clk 0:02:55]} 5. b3 {[%clk 0:03:00]}  Bg7 {[%clk 0:02:53]} 6. Bb2 {[%clk 0:03:00]}  O-O {[%clk 0:02:54]} 7. O-O {[%clk 0:03:01]}  Bg4 {[%clk 0:02:54]} 8. d3 {[%clk 0:03:00]}  Bxf3 {[%clk 0:02:51]} 9. Bxf3 {[%clk 0:03:01]}  Re8 {[%clk 0:02:50]} 10. Nd2 {[%clk 0:03:00]}  e5 {[%clk 0:02:48]} 11. Bg2 {[%clk 0:02:59]}  Nbd7 {[%clk 0:02:46]} 12. cxd5 {[%clk 0:02:56]}  cxd5 {[%clk 0:02:45]} 13. b4 {[%clk 0:02:55]}  a5 {[%clk 0:02:39]} 14. bxa5 {[%clk 0:02:30]}  Qxa5 {[%clk 0:02:35]} 15. Nb3 {[%clk 0:02:23]}  Qa4 {[%clk 0:02:33]} 16. Qd2 {[%clk 0:02:16]}  Rac8 {[%clk 0:02:15]} 17. Rfc1 {[%clk 0:02:11]}  Rc6 {[%clk 0:02:13]} 18. Qa5 {[%clk 0:02:05]}  Ra8 {[%clk 0:02:10]} 19. Qxa4 {[%clk 0:02:00]}  Rxa4 {[%clk 0:02:10]} 20. Kf1 {[%clk 0:01:37]}  Bf8 {[%clk 0:02:02]} 21. Bh3 {[%clk 0:01:09]}  Ba3 {[%clk 0:01:39]} 22. Bxa3 {[%clk 0:01:05]}  Rxa3 {[%clk 0:01:40]} 23. Rxc6 {[%clk 0:00:50]}  bxc6 {[%clk 0:01:40]} 24. Rc1 {[%clk 0:00:51]}  Ra6 {[%clk 0:01:40]} 25. d4 {[%clk 0:00:32]}  Kf8 {[%clk 0:01:22]} 26. Rc2 {[%clk 0:00:21]}  Ke7 {[%clk 0:01:19]} 27. Bxd7 {[%clk 0:00:18]}  Nxd7 {[%clk 0:01:19]} 28. dxe5 {[%clk 0:00:19]}  Nxe5 {[%clk 0:01:19]} 29. Nc5 {[%clk 0:00:20]}  Ra3 {[%clk 0:01:16]} 30. Nd3 {[%clk 0:00:16]}  Nc4 {[%clk 0:01:11]} 31. h4 {[%clk 0:00:16]}  h5 {[%clk 0:01:09]} 32. Ke1 {[%clk 0:00:16]}  Kd6 {[%clk 0:01:09]} 33. Kd1 {[%clk 0:00:17]}  Ra5 {[%clk 0:00:55]} 34. Kc1 {[%clk 0:00:16]}  c5 {[%clk 0:00:53]} 35. Ne1 {[%clk 0:00:08]}  Ne5 {[%clk 0:00:49]} 36. Rb2 {[%clk 0:00:08]}  d4 {[%clk 0:00:44]} 37. Nd3 {[%clk 0:00:05]}  Nd7 {[%clk 0:00:34]} 38. Rc2 {[%clk 0:00:03]}  Nb6 {[%clk 0:00:34]} 39. Nb2 {[%clk 0:00:02]}  Kd5 {[%clk 0:00:34]} 40. Nd3 {[%clk 0:00:02]}  c4 {[%clk 0:00:32]} 41. Nf4+ {[%clk 0:00:03]}  Ke5 {[%clk 0:00:32]} 42. Rb2 {[%clk 0:00:02]}  Nd5 {[%clk 0:00:24]} 43. Nxd5 {[%clk 0:00:03]}  Kxd5 {[%clk 0:00:24]} 44. Kb1 {[%clk 0:00:03]}  Kc6 {[%clk 0:00:04]} 45. Rb8 {[%clk 0:00:03]}  Re5 {[%clk 0:00:04]} 46. Rb2 {[%clk 0:00:02]}  c3 {[%clk 0:00:03]} 47. Rc2 {[%clk 0:00:02]}  Kd5 {[%clk 0:00:03]} 48. Kc1 {[%clk 0:00:02]}  Kc4 {[%clk 0:00:04]} 49. Kd1 {[%clk 0:00:02]}  Rb5 {[%clk 0:00:03]} 50. Rc1 {[%clk 0:00:02]}  Rb2 {[%clk 0:00:03]} 51. Ra1 {[%clk 0:00:02]}  d3 {[%clk 0:00:02]} 52. exd3+ {[%clk 0:00:02]}  Kxd3 {[%clk 0:00:03]} 53. Ke1 {[%clk 0:00:03]}  Re2+ {[%clk 0:00:03]} 54. Kf1 {[%clk 0:00:03]}  c2 {[%clk 0:00:04]} 55. a4 {[%clk 0:00:03]}  Rd2 {[%clk 0:00:04]} 56. Ra3+ {[%clk 0:00:03]}  Kc4 {[%clk 0:00:03]} 57. Kg2 {[%clk 0:00:03]}  c1=Q {[%clk 0:00:03]} 0-1


[Site "https://www.chess.com"]

[Event "Titled Tuesday Blitz May 11 2021"]
[White "Gritsenko, Nikolai"]
[Black "Sadhwani, Raunak"]
[WhiteFideId "14112493"]
[BlackFideId "35093487"]
[WhiteElo "2389"]
[BlackElo "2514"]
[Result "0-1"]
[Round "08"]
[TimeControl "180+1"]
[Date "2021.05.11"]
[WhiteClock "0:00:16"]
[BlackClock "0:01:34"]

1. d4 {[%clk 0:03:00]}  c5 {[%clk 0:03:00]} 2. d5 {[%clk 0:02:59]}  e5 {[%clk 0:03:01]} 3. c4 {[%clk 0:02:58]}  d6 {[%clk 0:03:00]} 4. Nc3 {[%clk 0:02:56]}  Be7 {[%clk 0:03:00]} 5. g3 {[%clk 0:02:53]}  h5 {[%clk 0:02:58]} 6. h3 {[%clk 0:02:43]}  Bg5 {[%clk 0:02:56]} 7. e3 {[%clk 0:02:42]}  Nf6 {[%clk 0:02:49]} 8. Nf3 {[%clk 0:02:32]}  Bh6 {[%clk 0:02:50]} 9. Bd3 {[%clk 0:02:26]}  Qe7 {[%clk 0:02:49]} 10. Qc2 {[%clk 0:02:19]}  Na6 {[%clk 0:02:49]} 11. a3 {[%clk 0:02:18]}  g6 {[%clk 0:02:47]} 12. Bd2 {[%clk 0:02:17]}  Nc7 {[%clk 0:02:47]} 13. O-O-O {[%clk 0:02:09]}  Bd7 {[%clk 0:02:48]} 14. Nh4 {[%clk 0:02:02]}  a6 {[%clk 0:02:19]} 15. f4 {[%clk 0:02:01]}  Rg8 {[%clk 0:02:13]} 16. fxe5 {[%clk 0:01:49]}  Qxe5 {[%clk 0:02:14]} 17. Ne2 {[%clk 0:01:31]}  b5 {[%clk 0:02:04]} 18. Bc3 {[%clk 0:01:12]}  Qe7 {[%clk 0:02:04]} 19. Rhf1 {[%clk 0:01:10]}  Bg7 {[%clk 0:02:00]} 20. Rf3 {[%clk 0:01:05]}  bxc4 {[%clk 0:01:43]} 21. Bxc4 {[%clk 0:01:04]}  Bb5 {[%clk 0:01:43]} 22. Bxb5+ {[%clk 0:00:33]}  axb5 {[%clk 0:01:44]} 23. Rdf1 {[%clk 0:00:33]}  Ncxd5 {[%clk 0:01:43]} 24. Bd2 {[%clk 0:00:25]}  b4 {[%clk 0:01:39]} 25. e4 {[%clk 0:00:22]}  Qxe4 {[%clk 0:01:33]} 26. Qxe4+ {[%clk 0:00:20]}  Nxe4 {[%clk 0:01:33]} 27. Rxf7 {[%clk 0:00:20]}  bxa3 {[%clk 0:01:34]} 28. bxa3 {[%clk 0:00:19]}  Rxa3 {[%clk 0:01:34]} 29. R1f3 {[%clk 0:00:16]}  Ra1+ {[%clk 0:01:34]} 0-1


[Site "https://www.chess.com"]

[Event "Titled Tuesday Blitz May 11 2021"]
[White "Holt, Conrad"]
[Black "Sarana, Alexey"]
[WhiteFideId "2034387"]
[BlackFideId "24133795"]
[WhiteElo "2586"]
[BlackElo "2629"]
[Result "1-0"]
[Round "08"]
[TimeControl "180+1"]
[Date "2021.05.11"]
[WhiteClock "0:00:04"]
[BlackClock "0:00:04"]

1. d4 {[%clk 0:03:00]}  Nf6 {[%clk 0:02:04]} 2. c4 {[%clk 0:03:00]}  e6 {[%clk 0:02:02]} 3. Nc3 {[%clk 0:03:00]}  d5 {[%clk 0:02:02]} 4. cxd5 {[%clk 0:03:00]}  Nxd5 {[%clk 0:02:02]} 5. e4 {[%clk 0:02:58]}  Nxc3 {[%clk 0:02:03]} 6. bxc3 {[%clk 0:02:58]}  c5 {[%clk 0:02:04]} 7. Rb1 {[%clk 0:02:59]}  Be7 {[%clk 0:02:02]} 8. Nf3 {[%clk 0:02:57]}  O-O {[%clk 0:02:02]} 9. Be2 {[%clk 0:02:41]}  b6 {[%clk 0:01:58]} 10. O-O {[%clk 0:02:39]}  Bb7 {[%clk 0:01:59]} 11. Bd3 {[%clk 0:02:35]}  Nc6 {[%clk 0:01:58]} 12. d5 {[%clk 0:02:32]}  exd5 {[%clk 0:01:47]} 13. exd5 {[%clk 0:02:32]}  Nb8 {[%clk 0:01:48]} 14. c4 {[%clk 0:02:29]}  Nd7 {[%clk 0:01:48]} 15. Qc2 {[%clk 0:02:28]}  g6 {[%clk 0:01:48]} 16. Bh6 {[%clk 0:02:24]}  Re8 {[%clk 0:01:48]} 17. Rfe1 {[%clk 0:02:22]}  Bf6 {[%clk 0:01:47]} 18. Rxe8+ {[%clk 0:02:19]}  Qxe8 {[%clk 0:01:48]} 19. Re1 {[%clk 0:02:18]}  Qb8 {[%clk 0:01:46]} 20. h4 {[%clk 0:02:16]}  b5 {[%clk 0:01:44]} 21. h5 {[%clk 0:02:14]}  bxc4 {[%clk 0:01:42]} 22. Be4 {[%clk 0:02:10]}  Nf8 {[%clk 0:01:16]} 23. Rb1 {[%clk 0:02:06]}  Qc8 {[%clk 0:01:07]} 24. Rxb7 {[%clk 0:01:55]}  Qxb7 {[%clk 0:01:08]} 25. d6 {[%clk 0:01:55]}  Qc8 {[%clk 0:01:09]} 26. Bxa8 {[%clk 0:01:50]}  Qxa8 {[%clk 0:01:10]} 27. Qxc4 {[%clk 0:01:42]}  Qc6 {[%clk 0:01:09]} 28. Qf4 {[%clk 0:01:39]}  Nd7 {[%clk 0:01:02]} 29. Bg5 {[%clk 0:01:35]}  Bg7 {[%clk 0:00:52]} 30. Be7 {[%clk 0:01:26]}  Qd5 {[%clk 0:00:49]} 31. Qg4 {[%clk 0:01:16]}  Qe6 {[%clk 0:00:25]} 32. Qa4 {[%clk 0:01:04]}  gxh5 {[%clk 0:00:19]} 33. Qxa7 {[%clk 0:01:00]}  Bc3 {[%clk 0:00:18]} 34. Qa8+ {[%clk 0:00:52]}  Kg7 {[%clk 0:00:18]} 35. Qa3 {[%clk 0:00:51]}  Be5 {[%clk 0:00:09]} 36. Qe3 {[%clk 0:00:43]}  Bf6 {[%clk 0:00:04]} 37. Bxf6+ {[%clk 0:00:36]}  Qxf6 {[%clk 0:00:03]} 38. Qd3 {[%clk 0:00:30]}  Qe6 {[%clk 0:00:02]} 39. a4 {[%clk 0:00:28]}  c4 {[%clk 0:00:01]} 40. Qd4+ {[%clk 0:00:26]}  f6 {[%clk 0:00:02]} 41. a5 {[%clk 0:00:26]}  c3 {[%clk 0:00:01]} 42. Qxc3 {[%clk 0:00:24]}  Qxd6 {[%clk 0:00:02]} 43. Nd4 {[%clk 0:00:23]}  Qe5 {[%clk 0:00:01]} 44. Qg3+ {[%clk 0:00:21]}  Qxg3 {[%clk 0:00:02]} 45. fxg3 {[%clk 0:00:19]}  Nc5 {[%clk 0:00:02]} 46. Kf2 {[%clk 0:00:18]}  Kg6 {[%clk 0:00:03]} 47. Kf3 {[%clk 0:00:18]}  Kg5 {[%clk 0:00:03]} 48. Ne2 {[%clk 0:00:14]}  Na6 {[%clk 0:00:03]} 49. Nf4 {[%clk 0:00:11]}  h4 {[%clk 0:00:03]} 50. Nh3+ {[%clk 0:00:11]}  Kh5 {[%clk 0:00:04]} 51. g4+ {[%clk 0:00:11]}  Kg6 {[%clk 0:00:04]} 52. Ke4 {[%clk 0:00:11]}  Nb4 {[%clk 0:00:03]} 53. Kf3 {[%clk 0:00:09]}  h5 {[%clk 0:00:02]} 54. Nf4+ {[%clk 0:00:08]}  Kg5 {[%clk 0:00:02]} 55. gxh5 {[%clk 0:00:09]}  f5 {[%clk 0:00:02]} 56. Ke2 {[%clk 0:00:08]}  Kh6 {[%clk 0:00:01]} 57. Kd2 {[%clk 0:00:08]}  Kg5 {[%clk 0:00:02]} 58. Kc3 {[%clk 0:00:08]}  Nc6 {[%clk 0:00:02]} 59. a6 {[%clk 0:00:08]}  Na7 {[%clk 0:00:01]} 60. Kc4 {[%clk 0:00:08]}  h3 {[%clk 0:00:01]} 61. Nxh3+ {[%clk 0:00:08]}  Kxh5 {[%clk 0:00:01]} 62. Kc5 {[%clk 0:00:07]}  Kg4 {[%clk 0:00:02]} 63. Kb6 {[%clk 0:00:07]}  Nc8+ {[%clk 0:00:02]} 64. Kb7 {[%clk 0:00:07]}  Nd6+ {[%clk 0:00:03]} 65. Kc6 {[%clk 0:00:07]}  Nc8 {[%clk 0:00:03]} 66. Ng1 {[%clk 0:00:05]}  Kg3 {[%clk 0:00:03]} 67. Nf3 {[%clk 0:00:06]}  f4 {[%clk 0:00:03]} 68. Ne1 {[%clk 0:00:06]}  Kf2 {[%clk 0:00:04]} 69. Nd3+ {[%clk 0:00:06]}  Kg3 {[%clk 0:00:04]} 70. Kc7 {[%clk 0:00:06]}  Na7 {[%clk 0:00:04]} 71. Kb7 {[%clk 0:00:05]}  Nb5 {[%clk 0:00:05]} 72. Kb6 {[%clk 0:00:06]}  Nd6 {[%clk 0:00:05]} 73. Kc6 {[%clk 0:00:06]}  Nc8 {[%clk 0:00:05]} 74. Kc5 {[%clk 0:00:06]}  Na7 {[%clk 0:00:03]} 75. Kd5 {[%clk 0:00:06]}  Nc8 {[%clk 0:00:02]} 76. Ke5 {[%clk 0:00:06]}  Kxg2 {[%clk 0:00:02]} 77. Nxf4+ {[%clk 0:00:06]}  Kf3 {[%clk 0:00:02]} 78. Nd5 {[%clk 0:00:06]}  Ke2 {[%clk 0:00:02]} 79. Nb4 {[%clk 0:00:06]}  Kd2 {[%clk 0:00:02]} 80. Kd5 {[%clk 0:00:06]}  Kc3 {[%clk 0:00:03]} 81. Kc5 {[%clk 0:00:07]}  Kb3 {[%clk 0:00:03]} 82. Nd5 {[%clk 0:00:07]}  Ka4 {[%clk 0:00:03]} 83. Nc7 {[%clk 0:00:02]}  Ka5 {[%clk 0:00:03]} 84. Kc6 {[%clk 0:00:03]}  Ne7+ {[%clk 0:00:01]} 85. Kd6 {[%clk 0:00:03]}  Nc8+ {[%clk 0:00:02]} 86. Kd7 {[%clk 0:00:03]}  Nb6+ {[%clk 0:00:01]} 87. Kc6 {[%clk 0:00:03]}  Nc8 {[%clk 0:00:02]} 88. Kb7 {[%clk 0:00:03]}  Nd6+ {[%clk 0:00:03]} 89. Ka7 {[%clk 0:00:03]}  Nb5+ {[%clk 0:00:03]} 90. Nxb5 {[%clk 0:00:03]}  Kxb5 {[%clk 0:00:04]} 91. Kb7 {[%clk 0:00:04]} 1-0


[Site "https://www.chess.com"]

[Event "Titled Tuesday Blitz May 11 2021"]
[White "Indjic, Aleksandar"]
[Black "Csonka, Balazs"]
[WhiteFideId "911925"]
[BlackFideId "742910"]
[WhiteElo "2643"]
[BlackElo "2404"]
[Result "1-0"]
[Round "08"]
[TimeControl "180+1"]
[Date "2021.05.11"]
[WhiteClock "0:00:19"]
[BlackClock "0:00:01"]

1. d4 {[%clk 0:03:00]}  e6 {[%clk 0:02:58]} 2. Nf3 {[%clk 0:03:00]}  Nf6 {[%clk 0:02:57]} 3. Bg5 {[%clk 0:02:58]}  h6 {[%clk 0:02:56]} 4. Bh4 {[%clk 0:02:57]}  b6 {[%clk 0:02:56]} 5. e3 {[%clk 0:02:51]}  Bb7 {[%clk 0:02:56]} 6. Nbd2 {[%clk 0:02:51]}  d6 {[%clk 0:02:51]} 7. h3 {[%clk 0:02:48]}  Be7 {[%clk 0:02:47]} 8. Bd3 {[%clk 0:02:48]}  c5 {[%clk 0:02:47]} 9. c3 {[%clk 0:02:47]}  Nc6 {[%clk 0:02:36]} 10. a3 {[%clk 0:02:47]}  Nh5 {[%clk 0:02:27]} 11. Bxe7 {[%clk 0:02:44]}  Qxe7 {[%clk 0:02:28]} 12. Qe2 {[%clk 0:02:44]}  Nf6 {[%clk 0:02:27]} 13. e4 {[%clk 0:02:43]}  e5 {[%clk 0:02:23]} 14. d5 {[%clk 0:02:41]}  Nb8 {[%clk 0:02:21]} 15. a4 {[%clk 0:02:41]}  a6 {[%clk 0:02:18]} 16. Nc4 {[%clk 0:02:23]}  Nbd7 {[%clk 0:02:17]} 17. Nfd2 {[%clk 0:02:22]}  O-O {[%clk 0:02:14]} 18. Ne3 {[%clk 0:02:22]}  g6 {[%clk 0:02:10]} 19. h4 {[%clk 0:02:22]}  Nh5 {[%clk 0:01:35]} 20. g3 {[%clk 0:02:22]}  Ng7 {[%clk 0:01:35]} 21. h5 {[%clk 0:02:21]}  g5 {[%clk 0:01:25]} 22. c4 {[%clk 0:02:16]}  a5 {[%clk 0:01:18]} 23. Kd1 {[%clk 0:02:12]}  Nb8 {[%clk 0:01:18]} 24. b3 {[%clk 0:02:04]}  Na6 {[%clk 0:01:17]} 25. Ng4 {[%clk 0:01:55]}  Kh7 {[%clk 0:01:10]} 26. Qf3 {[%clk 0:01:54]}  f6 {[%clk 0:01:01]} 27. Ne3 {[%clk 0:01:50]}  Nb4 {[%clk 0:00:57]} 28. Bf1 {[%clk 0:01:50]}  Bc8 {[%clk 0:00:49]} 29. Bh3 {[%clk 0:01:49]}  Bxh3 {[%clk 0:00:49]} 30. Rxh3 {[%clk 0:01:50]}  Qd7 {[%clk 0:00:48]} 31. Nf5 {[%clk 0:01:46]}  Nxf5 {[%clk 0:00:47]} 32. exf5 {[%clk 0:01:47]}  e4 {[%clk 0:00:35]} 33. Nxe4 {[%clk 0:01:43]}  Rae8 {[%clk 0:00:31]} 34. Kd2 {[%clk 0:01:37]}  Re5 {[%clk 0:00:28]} 35. g4 {[%clk 0:01:36]}  Qe7 {[%clk 0:00:23]} 36. Nc3 {[%clk 0:01:34]}  Re8 {[%clk 0:00:19]} 37. Rhh1 {[%clk 0:01:34]}  Kg7 {[%clk 0:00:17]} 38. Raf1 {[%clk 0:01:30]}  Kf7 {[%clk 0:00:12]} 39. Qd1 {[%clk 0:01:28]}  Na2 {[%clk 0:00:08]} 40. Rh3 {[%clk 0:00:16]}  Nxc3 {[%clk 0:00:07]} 41. Rxc3 {[%clk 0:00:17]}  Re2+ {[%clk 0:00:06]} 42. Kc1 {[%clk 0:00:18]}  Qe5 {[%clk 0:00:07]} 43. Qd3 {[%clk 0:00:18]}  Re1+ {[%clk 0:00:04]} 44. Rxe1 {[%clk 0:00:18]}  Qxe1+ {[%clk 0:00:04]} 45. Kb2 {[%clk 0:00:18]}  Re2+ {[%clk 0:00:01]} 46. Rc2 {[%clk 0:00:19]} 1-0


[Site "https://www.chess.com"]